Cogmind - Beta 16 @@@ ROGUE MODE // 2025.11.04 @ 21:18:30 Player: Cameron Result: Destroyed by 5B-C25(R) with Subdweller Beam Cannon Performance ------------- Evolutions (0) 0 Regions Visited (2) 400 Robots Destroyed (31) 155 Value Destroyed (732) 732 Prototype IDs (12) 240 Alien Tech Used (0) 0 Bonus (-47) -47 TOTAL SCORE: 1480 Bonus ------- Friendly Fire -47 Cogmind --------- Core Integrity 0/250 Matter 300/300 Energy 71/125 System Corruption 1% Temperature Cool (9) Movement Rolling (107) Ox1 Location -10/Subcaves Parts ------- > --- POWER (1) -------- Light Ion Engine > --- PROPULSION (2) --- Wheel Subdweller Monowheel > --- UTILITY (2) ------ Large Storage Unit Signal Interpreter > --- WEAPON (2) ------- Powered Cannon > --- INVENTORY (15) --- Subdweller Power Source Subdweller Power Source Wheel Wheel Heat Sink Signal Interpreter Scrap Shield Subdweller Laser Subdweller Machine Gun Light Cannon Light Cannon Grenade Launcher Subdweller Shrapnel Launcher Mining Claw Peak State ------------ > --- POWER ------------ Light Ion Engine > --- PROPULSION ------- Wheel Subdweller Monowheel > --- UTILITY ---------- Large Storage Unit Signal Interpreter > --- WEAPON ----------- Powered Cannon > --- INVENTORY -------- Subdweller Power Source Subdweller Power Source Wheel Wheel Heat Sink Signal Interpreter Scrap Shield Subdweller Laser Subdweller Machine Gun Light Cannon Light Cannon Grenade Launcher Subdweller Shrapnel Launcher Mining Claw [Rating: 22] Favorites ----------- Power Light Ion Engine Engine Light Ion Engine Propulsion Compact Wheel Leg Aluminum Leg Wheel Compact Wheel Utility Large Storage Unit Device Heat Sink Storage Large Storage Unit Processor Signal Interpreter Protection Medium Armor Plating Weapon Light Cannon Energy Gun EM Pulse Gun Energy Cannon Powered Cannon Ballistic Gun Assault Rifle Ballistic Cannon Light Cannon Launcher Grenade Launcher Slashing Weapon Mining Claw Build | -11 -10 -10 ------- Run | Yrd Mat Sub Slots Evolved . | . . . Power . | . . . Propulsion . | . . . Utility . | . . . Weapon . | . . . Parts Attached 25 | 6 9 10 Power 2 | 1 . 1 Engine 2 | 1 . 1 Core . | . . . Reactor . | . . . Propulsion 8 | 2 3 3 Treads . | . . . Leg 2 | 2 . . Wheel 6 | . 3 3 Hover . | . . . Flight . | . . . Utility 7 | 1 3 3 Device 2 | . 1 1 Storage 2 | 1 1 . Processor 1 | . . 1 Hackware . | . . . Protection 2 | . 1 1 Artifact . | . . . Weapon 8 | 2 3 3 Energy Gun 1 | 1 . . Energy Cannon 1 | . . 1 Ballistic Gun 1 | 1 . . Ballistic Cannon 3 | . 2 1 Launcher 1 | . 1 . Special Weapon . | . . . Impact Weapon . | . . . Slashing Weapon 1 | . . 1 Piercing Weapon . | . . . Special Melee Weapon . | . . . Unidentified Prototypes . | . . . Parts Lost 5 | . 1 4 Power 1 | . . 1 Propulsion 2 | . . 2 Utility 2 | . 1 1 Weapon . | . . . Highest Loss Streak 4 | . 1 4 To Critical Strikes . | . . . Average Backups 12 | 2 12 14 Power 1 | . 1 1 Propulsion 3 | 1 3 2 Utility 2 | . 3 2 Weapon 5 | . 3 6 Tool/Special . | . . . Unused Backups 21 | . 7 14 Power 4 | . . 4 Propulsion 3 | . 1 2 Utility 5 | . 4 1 Weapon 9 | . 2 7 Tool/Special . | . . . Average Slot Usage (%) 93 | . 99 86 Engine 15 | . 13 18 Leg 2 | . 5 . Wheel 24 | . 22 26 Device 6 | . 3 10 Storage 13 | . 14 12 Protection 5 | . 9 . Energy Gun 4 | . 7 . Energy Cannon 5 | . . 11 Ballistic Gun 4 | . 7 . Ballistic Cannon 7 | . 12 2 Peak Build Rating 22 | 6 9 22 Average Rating 13 | 5 8 19 On Entrance 4 | . 6 8 Avg Prop Armor Cover (%) . | . . . Naked Turns . | . . . Heaviest Build 36 | 12 36 36 Greatest Support 32 | 20 32 32 Greatest Overweight (x) 3 | 3 1 1 Average Overweight (x) . | . . . Largest Inventory Capacity 15 | 8 15 15 Average Capacity 14 | 7 13 14 Most Carried 15 | 4 15 15 Average Carried 12 | 2 12 14 Final Capacity 15 | 8 15 15 Final Carried 15 | 4 15 15 Class Distribution -------------------- 100% | Mutant Dominant Class ---------------- Mutant | -10/Materials Mutant | -10/Subcaves Resources | -11 -10 -10 ----------- Run | Yrd Mat Sub Matter Collected 800 | 231 411 158 Remotely . | . . . Salvage Created 772 | . 609 163 Parts 74 | . 56 18 Haulers Intercepted 1 | . 1 . Recyclers Shooed 1 | . 1 . Parts Field Recycled . | . . . Retrieved Matter . | . . . Parts Self-Destructed 8 | . . 8 Prevented . | . . . Parts Restored . | . . . Kills | -11 -10 -10 ------- Run | Yrd Mat Sub Combat Hostiles Destroyed 23 | . 18 5 Guns 7 | . 7 . Cannons 13 | . 10 3 AOE 1 | . 1 . Classes Destroyed 9 | . 7 2 Worker 1 | . 1 . Builder 1 | . 1 . Hauler 1 | . 1 . Operator 2 | . 2 . Watcher 3 | . 3 . Swarmer 9 | . 9 . Grunt 9 | . 9 . Sentry 1 | . . 1 Subdweller 4 | . . 4 Best Kill Streak 5 | . 5 2 Combat Bots Only 5 | . 5 2 Max Kills in Single Turn 2 | . 2 1 Gunslinging 1 | . 1 . Exploded 1 | . 1 . Melee . | . . . Uniques/NPCs Destroyed . | . . . Combat | -11 -10 -10 -------- Run | Yrd Mat Sub Hostile Shots Fired 86 | . 59 27 Missed 26 | . 15 11 Hits 60 | . 44 16 Projectile 60 | . 44 16 AOE 2 | . . 2 Damage Taken 859 | . 443 416 Core 267 | . 85 182 Absorbed by Shields . | . . . Regen/Repaired (Parts) 39 | . 39 . Core Remaining (%) 100 | 100 . . Volleys Fired 75 | . 55 20 Largest 2 | . 2 2 Hottest 60 | . 60 60 Shots Fired 129 | . 106 23 Gun 59 | . 59 . Cannon 69 | . 46 23 Launcher 1 | . 1 . Special . | . . . Kinetic 83 | . 77 6 Thermal 17 | . . 17 Explosive 1 | . 1 . Electromagnetic 28 | . 28 . Robot Hit Streak 6 | . 6 2 Robot Miss Streak 4 | . 4 2 Penetration Max . | . . . Secondary Targets 2 | . 2 . Max Gunslinging Chain 1 | . 1 . Shots Hit Robots 58 | . 51 7 Core Hits 33 | . 30 3 Critical Kills 2 | . . 2 Critical Parts Destroyed . | . . . Critical Strikes 2 | . . 2 Meltdown 2 | . . 2 Melee Attacks 1 | . . 1 Impact . | . . . Slashing 1 | . . 1 Piercing . | . . . Sneak Attacks . | . . . Combat Hostiles . | . . . Follow-up Attacks . | . . . Damage Inflicted 1245 | . 837 408 Guns 388 | . 388 . Cannons 825 | . 417 408 Explosions 32 | . 32 . Melee . | . . . Ramming . | . . . Kinetic 628 | . 628 . Thermal 440 | . 32 408 Explosive . | . . . Electromagnetic 177 | . 177 . Impact . | . . . Slashing . | . . . Piercing . | . . . Highest Corruption 1 | . 1 1 Average Corruption 1 | . 1 1 Corruption Purged . | . . . Corruption Blocked . | . . . Effects 6 | . 1 5 Message Errors 1 | . . 1 Matter Fused 1 | . . 1 Heat Flow Errors 1 | . . 1 Energy Discharges 2 | . 1 1 Data Loss (minor) 1 | . . 1 Overload Shots . | . . . Overflow Damage 23 | . 7 16 Projectiles 23 | . 7 16 Explosions . | . . . Melee . | . . . Knockbacks 4 | . 4 . Impact . | . . . Kinetic 4 | . 4 . Secondary . | . . . Self-Inflicted Damage 7 | . 7 . Shots 1 | . 1 . Rammed . | . . . Targets Rammed . | . . . Kicked . | . . . Crushed . | . . . Highest Temperature 145 | . 87 145 Average Temperature 22 | . 20 75 Received Heat Transfer 198 | . 135 63 Siege Activations . | . . . Martial Activations . | . . . Shielding Activations . | . . . Robots Disrupted . | . . . Combat Hostiles . | . . . Robots Corrupted . | . . . Combat Hostiles . | . . . Parts Fried 1 | . 1 . Impact Corruptions . | . . . Robots Melted 2 | . . 2 Combat Hostiles 2 | . . 2 Parts Melted 1 | . . 1 Heat Transferred . | . . . Parts Sabotaged . | . . . Parts Stolen . | . . . Parts Stripped . | . . . Power Chain Reactions 1 | . 1 . Alert | -11 -10 -10 ------- Run | Yrd Mat Sub Maximum Alert Level 1 | . 1 . Low Security (%) 85 | 100 84 . Level 1 14 | . 15 . Level 2 . | . . . Level 3 . | . . . Level 4 . | . . . Level 5 . | . . . High Security . | . . . Max Security . | . . . Peak Influence 239 | . 239 . Initial . | . . . Average 90 | . 95 . Influence Increases 621 | . 586 35 Destroy 0b10 Robot/C 380 | . 360 20 Destroy 0b10 Robot/NC 40 | . 40 . Destroy Leader 78 | . 78 . Successful Hack 49 | . 49 . Disable Machine 45 | . 45 . Destroy Structure 14 | . 14 . Lose Combat Pursuer 15 | . . 15 Influence Decreases 621 | . 389 232 Entered New Map 95 | . . 95 Time Decay 516 | . 379 137 Lost Part 10 | . 10 . Squads Dispatched 3 | . 3 . Investigation 1 | . 1 . Extermination . | . . . Reinforcement 2 | . 2 . Assault . | . . . Garrison . | . . . Intercept . | . . . Searches Triggered . | . . . Construction Impeded . | . . . Haulers Reinforced . | . . . Active Scanning Responses . | . . . Cargo Convoy Interrupts . | . . . Stealth | -11 -10 -10 --------- Run | Yrd Mat Sub Distress Signals 1 | . 1 . Communications Jammed . | . . . Distress Signals . | . . . Times Spotted 37 | . 26 11 Peak Tracking Total 3 | . 3 2 Tactical Retreats 2 | . . 2 Traps | -11 -10 -10 ------- Run | Yrd Mat Sub Traps Triggered 1 | . 1 . Indirectly . | . . . Trap Hack Attempts . | . . . Triggered . | . . . Disarmed . | . . . Reprogrammed . | . . . Reused . | . . . Traps Extracted . | . . . Installed . | . . . Triggered . | . . . Machines | -11 -10 -10 ---------- Run | Yrd Mat Sub Machines Disabled 5 | . 4 1 Max in Single Turn 1 | . 1 1 Machines Repaired . | . . . Machines Dismantled . | . . . Machines Sabotaged . | . . . Overloaded Fab Kills . | . . . Hacking | -11 -10 -10 --------- Run | Yrd Mat Sub Machines Accessed 8 | . 5 3 Terminals 4 | . 4 . Fabricators . | . . . Repair Stations 1 | . 1 . Recycling Units . | . . . Scanalyzers . | . . . Garrison Access . | . . . Total Hacks 17 | . 13 4 Successful 12 | . 8 4 Failed 5 | . 5 . Catastrophic 1 | . 1 . Database Lockouts . | . . . Manual 4 | . 4 . Terminals 10 | . 10 . Fabricators . | . . . Repair Stations 3 | . 3 . Recycling Units . | . . . Scanalyzers . | . . . Garrison Access . | . . . Terminal Hacks 10 | . 6 4 Record 1 | . . 1 Open Door 1 | . . 1 Branch Access Points 1 | . 1 . Terminal Index 1 | . 1 . Locate Traps 1 | . 1 . Dispatch Records 1 | . 1 . Recall Investigation 1 | . 1 . Hauler Manifests 1 | . 1 . Proto ID Catalog 1 | . . 1 Release Object 1 | . . 1 Fabricator Hacks . | . . . Repair Station Hacks 2 | . 2 . Scan Component 1 | . 1 . Repair 1 | . 1 . Recycling Unit Hacks . | . . . Scanalyzer . | . . . Garrison Access Hacks . | . . . Unauthorized Hacks . | . . . Terminals . | . . . Fabricators . | . . . Repair Stations . | . . . Recycling Units . | . . . Scanalyzers . | . . . Garrison Access . | . . . Data Cores Recovered . | . . . Used . | . . . Hacking Detections 5 | . 5 . Full Trace Events 2 | . 2 . Feedback Events 1 | . 1 . Corruption 1 | . 1 . Feedback Blocked . | . . . Robot Schematics Acquired . | . . . Robots Built . | . . . Authchips . | . . . Time . | . . . Total Robot Build Rating . | . . . Part Schematics Acquired . | . . . Parts Built . | . . . Authchips . | . . . Time . | . . . Total Part Build Rating . | . . . Part Studies Acquired . | . . . Parts Repaired 1 | . 1 . Time 13 | . 13 . Parts Recycled . | . . . Recycled Matter . | . . . Retrieved Matter . | . . . Retrieved Components . | . . . Parts Scanalyzed . | . . . Part Schematics Acquired . | . . . Parts Damaged . | . . . Bothacking | -11 -10 -10 ------------ Run | Yrd Mat Sub Used RIF Installer . | . . . Robots Hacked . | . . . Non-combat . | . . . Combat . | . . . Robot Hacks Applied . | . . . Relay Couplers Released . | . . . Fabnet Peak Effective % . | . . . Robots Rewired . | . . . Allies Hacked . | . . . Hacks Repelled . | . . . Allies | -11 -10 -10 -------- Run | Yrd Mat Sub Total Allies . | . . . Largest Group . | . . . Highest-Rated Group . | . . . Highest-Rated Ally . | . . . Total Orders . | . . . Ally Attacks . | . . . Total Damage . | . . . Kills . | . . . Allies Corrupted . | . . . Allies Melted . | . . . Intel | -11 -10 -10 ------- Run | Yrd Mat Sub Active Infowar (turns) 459 | . . 459 Sensors 459 | . . 459 Robot Analysis Total . | . . . Derelict Logs Recovered 1 | . . 1 Drone Launches . | . . . Drone Recoveries . | . . . Exploration | -11 -10 -10 ------------- Run | Yrd Mat Sub Turns Passed 2177 | 66 1170 941 Spaces Moved 1416 | 44 608 764 Core 9 | 9 . . Treads . | . . . Legs 191 | 35 156 . Wheels 1216 | . 452 764 Hover . | . . . Flight . | . . . Fastest Speed 50 | 50 100 80 Average Speed 108 | 123 112 105 Slowest Speed 200 | 200 190 115 Overloaded Moves . | . . . Propulsion Burnouts . | . . . Robots Hopped . | . . . Potential Cave-ins . | . . . Cave-ins Triggered . | . . . Exploration Rate (%) 50 | 4 86 60 Regions Visited 2 Branch Regions 1 Pre-discovered Areas 2 | . . 2 Known Exits Taken . | . . . Unknown Exits Taken 2 | 1 1 . Scrap Searched . | . . . Spaces Dug . | . . . Terrain Destroyed 18 | . 13 5 Melee . | . . . Projectile 5 | . . 5 AOE 13 | . 13 . Terrain Rammed . | . . . Walls Destroyed . | . . . Machines Disabled . | . . . Actions | -11 -10 -10 --------- Run | Yrd Mat Sub Total 1932 | 53 996 883 Wait 331 | . 284 47 Move 1414 | 43 607 764 Hop . | . . . Pick Up 49 | 4 24 21 Fast Attach 12 | 6 3 3 Attach 5 | . . 5 Detach 2 | . . 2 Swap 13 | . 8 5 Drop 27 | . 15 12 Fire 75 | . 55 20 Melee 1 | . . 1 Ram . | . . . Kick . | . . . Crush . | . . . Escape Stasis . | . . . Rewire . | . . . Trap . | . . . Miscellaneous 3 | . . 3 Route ------- -11/Scrapyard -10/Materials (discovered 6 exits: [*Mat x3] / *Min x2 / *Sub) -10/Subcaves (discovered 1 exit: *Mat) History --------- Turn | Location | Event 2 | -11/Scrapyard | Met Revision 17 26 | -11/Scrapyard | Discovered new exit (range 15) 67 | -11/Scrapyard | Entered Materials 137 | -10/Materials | Discovered new exit (range 6) 179 | -10/Materials | Identified exit to Mines 221 | -10/Materials | Discovered new exit (range 11) 315 | -10/Materials | Build established: Mutant 739 | -10/Materials | Discovered new exit (range 8) 1115 | -10/Materials | Repaired Lgt. Ion Engine 1122 | -10/Materials | Discovered new exit (range 13) 1229 | -10/Materials | Discovered new exit (range 6) 1237 | -10/Materials | Entered Subcaves 1307 | -10/Subcaves | Visited 4L-MR0's lab 1319 | -10/Subcaves | Found Powered Cannon 1320 | -10/Subcaves | Attached Powered Cannon, gained temporary slot: Power 1678 | -10/Subcaves | Shifting Twisted Machinery released Sub. Laser 1678 | -10/Subcaves | Shifting Twisted Machinery released Sub. Machine Gun 1722 | -10/Subcaves | Core integrity fell below 50% 1754 | -10/Subcaves | Lost 4 parts (1p2n1u) 1869 | -10/Subcaves | Released subatomizers from SUBCON Basin 1901 | -10/Subcaves | Learned location of Zion (-7) 2022 | -10/Subcaves | Discovered new exit (range 9) 2030 | -10/Subcaves | Core integrity fell below 20% 2030 | -10/Subcaves | Identified exit to Materials 2083 | -10/Subcaves | Shifting Twisted Machinery released Sub. Machine Gun 2083 | -10/Subcaves | Shifting Twisted Machinery released Shrapnel Trap 2104 | -10/Subcaves | A swath of the cavern ceiling suddenly collapsed 2142 | -10/Subcaves | A swath of the cavern ceiling suddenly collapsed 2155 | -10/Subcaves | Met a Zionite searching for "candidates" 2178 | -10/Subcaves | Destroyed by 5B-C25(R) with Subdweller Beam Cannon Last Messages --------------- 02010_ Acquired Sub. Power Source. 02022_ EXIT=FOUND 02030_ EXIT=IDENTIFIED: MATERIALS 02043_ Acquired 30 matter. 02049_ Acquired 10 matter. Sub. Machine Gun falls loose from the Twisted Machinery. Shrapnel Trap falls loose from the Twisted Machinery. A swath of the cavern ceiling suddenly collapses. 02134_ GV-E3H(z): "She is not going to be happy we haven't found any suitable candidates yet." A swath of the cavern ceiling suddenly collapses. 02155_ GV-E3H(z): "Hey you! It's really dangerous down here, I feel that you could die at any moment. For your health and safety might I suggest a trip to Zion?" World map confirmed: -7/Zion. Map ----- +----------------------------------------------------+ | | | | | | | | | | | | | | | | | | | | | ?????????????????????????????????????????????????? | | ?????????????????????????????????????????????????? | | ?????????????????????????????????????????????????? | | ?????????????????????????????????????????????????? | | ?????????????????????????????????????????????????? | | ?????????????????????????????????????????????????? | | ?????????????????????????????????????????????????? | | ?????????????????????????????????????????????????? | | ?????????????????????????????????????????????????? | | ?????????????????????????????????????????????????? | | ?????????????????????????????????????????????????? | | ????????????????????????######???????????????????? | | ????????????????????????# #???????????????????? | | ????????????????????????# #???????????????????? | | ????????????????????????# ######?????####?##??? | | ??????????????????????###@##### ##?### ## ??? | | ??????????????????????# R#### ## # #??? | | ??????????????????????#z R # #???? | | ??????????????????????## z # #????? | | ???????????????????????## ## "# #????? | | ????????????????????????## ### #?? #????? | | ?????????????????????????## #?# ### #?????? | | ??????????????????????????## #?# # #####?? | | ???????????????????????????# #?# """# #?? | | ??????????????????????????? #?# #"#"""# | | ??????????????????????????# #?### # #"# | | ???????????????????? ?????# ???## ### "" | | ???????????????????? ###### #????# #?? # #??? | | ????????????????????? ## #????# #???? #??? | | ?????????????????????? ???## #?????? #??? | | ??????????????????????? ###??## #??????????? | | ????????????????????????# ###??## #??????????? | | ?????????????????????????# #### # #????????? | | ??????????????????????????# ## #????????? | | ??????????????????????????# #### ## #????????? | | ??????????????? ????????# ## ##? #????????? | | ??????????????? #???????# #? #???????? | | ??????????????? #####?## ##? ##???????? | | ??????????????? ?# ##?? ????????? | | ?????????????????# ## ######??? ???????? | +----------------------------------------------------+ Best States ------------- Heat Dissipation 35 Energy Generation 15 Energy Capacity 150 Matter Stores 300 Matter Capacity 300 Sight Range 16 Robot Scan Range 14 Terrain Scan Density 10 Armor Coverage 800 Evasion (%) 55 Item Schematics ----------------- None Robot Schematics ------------------ None Fabricated ------------ Nothing Repaired ---------- Lgt. Ion Engine | 2% | -10/Materials Studied --------- None Alien Tech Used ----------------- None Achievements -------------- Survival Of The Most Covered Challenges ------------ None Game ------ Seed BraceProcessingBuckler Manual? 0 Play Time 00:24:49 Cumulative 53.3 hours Start 2025.11.04 @ 20:54:28 End 2025.11.04 @ 21:18:30 Sessions 1 Manual Loads 0 Difficulty Rogue Special Mode None Game No. 55 Rogue 55 Adventurer 0 Explorer 0 Win Type - Total 1 Types 1/0/0/0/0/0/0/0/0/0 Lore% 30 Gallery% 36 Achievement% 28 Wizard Run 0 Options --------- Layout 1 ASCII 0 Keyboard 0 Movement Numpad Keybinds 0 Fullscreen 2 Font 32/SmallcapsGlow Map View 50x35 Zoom Use 0% Tactical HUD 1 Map Filters NONE Filters NONE Steam 1 RUN: 44698315-acff-4aef-b9ec-59533a2baf49